Cogmind - Beta 10.2 @@@ ROGUE MODE // 2021.08.24 @ 13:18:35 Player: cavemonk Result: Self-destructed Performance ------------- Evolutions (0) 0 Regions Visited (4) 800 Robots Destroyed (32) 160 Value Destroyed (635) 635 Prototype IDs (23) 460 Alien Tech Used (0) 0 Bonus (360) 360 TOTAL SCORE: 2415 Bonus ------- Follower Combat Kills 60 Aligned with FarCom 300 Cogmind --------- Core Integrity 212/250 Matter 290/300 Energy 265/265 System Corruption 4% Temperature Cool (0) Movement Treading (180) Ox1 Location -9/Mines Parts ------- > --- POWER (1) -------- Improved Ion Engine > --- PROPULSION (2) --- Light Treads Light Treads > --- UTILITY (2) ------ Large Storage Unit High-capacity Storage Unit > --- WEAPON (2) ------- Particle Gun Rocket Launcher > --- INVENTORY (18) --- Improved Ion Engine Light Treads Improved Treads Improved Treads Improved Treads High-capacity Matter Pod (200) High-capacity Matter Pod (113) Rocket Launcher Rocket Launcher Mining Laser Peak State ------------ > --- POWER ------------ Improved Ion Engine > --- PROPULSION ------- Light Treads Improved Treads > --- UTILITY ---------- Improved Heat Sink High-capacity Storage Unit > --- WEAPON ----------- Particle Gun Rocket Launcher > --- INVENTORY -------- Improved Ion Engine Light Treads Light Treads Improved Treads Improved Treads Wheel High-capacity Matter Pod High-capacity Matter Pod Rocket Launcher Rocket Launcher Mining Laser [Rating: 14] Favorites ----------- Power Improved Ion Engine Engine Improved Ion Engine Propulsion Light Treads Treads Light Treads Leg Aluminum Leg Wheel Wheel Utility High-capacity Storage Unit Device Improved Heat Sink Storage High-capacity Storage Unit Weapon Medium Laser Energy Gun Medium Laser Energy Cannon Beam Cannon Launcher Rocket Launcher Special Weapon Mining Laser Build | -11 -10 -10 -10 -9 ------- Run | Scr Mat Min Exi Min Slots Evolved . | . . . . . Power . | . . . . . Propulsion . | . . . . . Utility . | . . . . . Weapon . | . . . . . Parts Attached 32 | 3 17 10 2 . Power 1 | . 1 . . . Engine 1 | . 1 . . . Core . | . . . . . Reactor . | . . . . . Propulsion 13 | 2 5 6 . . Treads 8 | 1 3 4 . . Leg . | . . . . . Wheel 5 | 1 2 2 . . Hover . | . . . . . Flight . | . . . . . Utility 7 | 1 3 1 2 . Device 2 | 1 . 1 . . Storage 5 | . 3 . 2 . Processor . | . . . . . Hackware . | . . . . . Protection . | . . . . . Artifact . | . . . . . Weapon 11 | . 8 3 . . Energy Gun 3 | . 2 1 . . Energy Cannon 1 | . . 1 . . Ballistic Gun . | . . . . . Ballistic Cannon . | . . . . . Launcher 6 | . 5 1 . . Special Weapon 1 | . 1 . . . Impact Weapon . | . . . . . Slashing Weapon . | . . . . . Piercing Weapon . | . . . . . Special Melee Weapon . | . . . . . Unidentified Prototypes . | . . . . . Parts Lost 1 | . . 1 . . Power . | . . . . . Propulsion 1 | . . 1 . . Utility . | . . . . . Weapon . | . . . . . Highest Loss Streak 1 | . . 1 . . Average Slot Usage (%) 99 | . 100 100 99 . Engine 14 | . 14 14 14 . Treads 19 | . 18 17 28 . Wheel 8 | . 9 10 . . Device 13 | . 14 14 11 . Storage 14 | . 14 14 15 . Energy Gun 18 | . 24 14 14 . Launcher 8 | . 2 11 14 . Naked Turns . | . . . . . Heaviest Build 62 | 12 46 47 62 62 Greatest Support 40 | 20 40 40 40 40 Greatest Overweight (x) 4 | 1 4 4 1 1 Average Overweight (x) 2 | . 2 3 1 1 Largest Inventory Capacity 18 | 6 12 12 18 18 Average Capacity 10 | 6 8 12 12 18 Most Carried 12 | 6 12 12 10 10 Average Carried 9 | 4 8 10 9 10 Final Capacity 18 | 6 12 12 18 18 Final Carried 11 | 5 11 10 10 10 Class Distribution -------------------- 100% | Mutant Dominant Class ---------------- Mutant | -10/Materials Mutant | -10/Mines Mutant | -10/Exiles Mutant | -9/Mines Resources | -11 -10 -10 -10 -9 ----------- Run | Scr Mat Min Exi Min Matter Collected 1079 | 230 149 700 . . Remotely . | . . . . . Salvage Created 651 | 121 179 351 . . Parts 64 | 8 24 32 . . Haulers Intercepted 1 | . 1 . . . Recyclers Shooed . | . . . . . Parts Field Recycled . | . . . . . Retrieved Matter . | . . . . . Parts Self-Destructed . | . . . . . Prevented . | . . . . . Kills | -11 -10 -10 -10 -9 ------- Run | Scr Mat Min Exi Min Combat Hostiles Destroyed 23 | . 10 13 . . Guns 5 | . 1 4 . . Cannons 3 | . . 3 . . AOE 15 | . 9 6 . . Classes Destroyed 7 | 2 5 . . . Builder 2 | . 1 1 . . Tunneler 3 | 3 . . . . Hauler 1 | . 1 . . . Recycler 1 | 1 . . . . Watcher 2 | . 2 . . . Swarmer 15 | . 9 6 . . Grunt 8 | . 1 7 . . Best Kill Streak 4 | 2 4 3 . . Combat Bots Only 3 | . 3 3 . . Max Kills in Single Turn 3 | 1 2 3 . . Gunslinging . | . . . . . Exploded 3 | . 2 3 . . Melee . | . . . . . Uniques/NPCs Destroyed . | . . . . . Combat | -11 -10 -10 -10 -9 -------- Run | Scr Mat Min Exi Min Damage Taken 471 | . 194 277 . . Core 38 | . 29 9 . . Absorbed by Shields . | . . . . . Core Remaining (%) 100 | 100 . . . . Volleys Fired 57 | 5 26 26 . . Largest 2 | 2 2 2 . . Hottest 125 | 100 100 125 . . Shots Fired 79 | 10 34 35 . . Gun 45 | 10 16 19 . . Cannon 8 | . . 8 . . Launcher 16 | . 8 8 . . Special 10 | . 10 . . . Kinetic . | . . . . . Thermal 63 | 10 26 27 . . Explosive 16 | . 8 8 . . Electromagnetic . | . . . . . Robot Hit Streak 18 | 3 17 18 . . Robot Miss Streak 2 | 1 . 2 . . Penetration Max . | . . . . . Secondary Targets . | . . . . . Shots Hit Robots 40 | 6 14 20 . . Core Hits 44 | 5 17 22 . . Critical Hits . | . . . . . Critical Kills . | . . . . . Critical Parts Destroyed . | . . . . . Melee Attacks . | . . . . . Impact . | . . . . . Slashing . | . . . . . Piercing . | . . . . . Sneak Attacks . | . . . . . Combat Hostiles . | . . . . . Follow-up Attacks . | . . . . . Damage Inflicted 1598 | 101 648 849 . . Guns 406 | 101 150 155 . . Cannons 88 | . . 88 . . Explosions 1067 | . 498 569 . . Melee . | . . . . . Ramming 37 | . . 37 . . Kinetic . | . . . . . Thermal 494 | 101 150 243 . . Explosive 1067 | . 498 569 . . Electromagnetic . | . . . . . Impact . | . . . . . Slashing . | . . . . . Piercing . | . . . . . Highest Corruption 4 | . 4 4 4 4 Average Corruption 3 | . 3 4 4 4 Corruption Purged . | . . . . . Effects 46 | . 19 18 9 . Message Errors 15 | . 5 9 1 . Matter Fused 12 | . 5 5 2 . Heat Flow Errors 2 | . . 1 1 . Energy Discharges 6 | . 3 1 2 . Data Loss (minor) 8 | . 4 1 3 . Targeting Errors 3 | . 2 1 . . Overload Shots . | . . . . . Overflow Damage 88 | . 39 49 . . Projectiles . | . . . . . Explosions 88 | . 39 49 . . Melee . | . . . . . Knockbacks . | . . . . . Impact . | . . . . . Kinetic . | . . . . . Secondary . | . . . . . Self-Inflicted Damage 78 | . 20 58 . . Shots 3 | . 1 2 . . Rammed 3 | . . 3 . . Targets Rammed 3 | . . 3 . . Kicked . | . . . . . Crushed . | . . . . . Highest Temperature 187 | 117 187 117 158 . Average Temperature 49 | 53 51 40 94 . Received Heat Transfer 153 | . 54 99 . . Siege Activations . | . . . . . Robots Corrupted . | . . . . . Combat Hostiles . | . . . . . Parts Fried . | . . . . . Impact Corruptions . | . . . . . Robots Melted . | . . . . . Combat Hostiles . | . . . . . Parts Melted 1 | . . 1 . . Heat Transferred 1369 | 296 444 629 . . Parts Sabotaged . | . . . . . Parts Stolen . | . . . . . Parts Stripped . | . . . . . Power Chain Reactions . | . . . . . Missiles Intercepted . | . . . . . Alert | -11 -10 -10 -10 -9 ------- Run | Scr Mat Min Exi Min Peak Influence 259 | 20 220 259 . . Initial 39 | . 13 39 . . Average 100 | 10 82 126 . . Maximum Alert Level 1 | . 1 1 . . Low Security (%) 87 | 100 92 80 . 100 Level 1 12 | . 7 19 . . Level 2 . | . . . . . Level 3 . | . . . . . Level 4 . | . . . . . Level 5 . | . . . . . High Security . | . . . . . Max Security . | . . . . . Squads Dispatched 3 | . 3 . . . Investigation 2 | . 2 . . . Extermination . | . . . . . Reinforcement 1 | . 1 . . . Assault . | . . . . . Garrison . | . . . . . Intercept . | . . . . . Construction Impeded . | . . . . . Haulers Reinforced . | . . . . . Stealth | -11 -10 -10 -10 -9 --------- Run | Scr Mat Min Exi Min Distress Signals 2 | . . 2 . . Communications Jammed . | . . . . . Distress Signals . | . . . . . Times Spotted 31 | . 16 15 . . Peak Tracking Total 4 | . 4 3 . . Tactical Retreats 3 | . 1 2 . . Traps | -11 -10 -10 -10 -9 ------- Run | Scr Mat Min Exi Min Traps Triggered 3 | . 3 . . . Indirectly . | . . . . . Trap Hack Attempts . | . . . . . Triggered . | . . . . . Disarmed . | . . . . . Reprogrammed . | . . . . . Reused . | . . . . . Traps Extracted . | . . . . . Installed . | . . . . . Triggered . | . . . . . Exploded 1 | . . . 1 . Machines | -11 -10 -10 -10 -9 ---------- Run | Scr Mat Min Exi Min Machines Disabled 10 | . 4 6 . . Max in Single Turn 2 | . 1 2 . . Machines Sabotaged . | . . . . . Garrisons Compromised . | . . . . . Overloaded Fab Kills . | . . . . . Fab Network Shutdowns . | . . . . . Hacking | -11 -10 -10 -10 -9 --------- Run | Scr Mat Min Exi Min Machines Accessed 9 | . 8 . 1 . Terminals 6 | . 6 . . . Fabricators . | . . . . . Repair Stations . | . . . . . Recycling Units 2 | . 2 . . . Scanalyzers . | . . . . . Garrison Access . | . . . . . Total Hacks 24 | . 23 . 1 . Successful 9 | . 8 . 1 . Failed 15 | . 15 . . . Catastrophic 3 | . 3 . . . Database Lockouts . | . . . . . Manual 21 | . 20 . 1 . Terminals 19 | . 19 . . . Fabricators . | . . . . . Repair Stations . | . . . . . Recycling Units 4 | . 4 . . . Scanalyzers . | . . . . . Garrison Access . | . . . . . Terminal Hacks 5 | . 4 . 1 . Unreport Threat 2 | . 2 . . . Locate Traps 1 | . 1 . . . Recall Investigation 1 | . 1 . . . EX-Prototype ID Bank 1 | . . . 1 . Fabricator Hacks . | . . . . . Repair Station Hacks . | . . . . . Recycling Unit Hacks . | . . . . . Scanalyzer . | . . . . . Garrison Access Hacks . | . . . . . Unauthorized Hacks 4 | . 4 . . . Terminals 3 | . 3 . . . Track 3 | . 3 . . . Fabricators . | . . . . . Repair Stations . | . . . . . Recycling Units 1 | . 1 . . . Tunnel 1 | . 1 . . . Scanalyzers . | . . . . . Garrison Access . | . . . . . Data Cores Recovered . | . . . . . Used . | . . . . . Hacking Detections 7 | . 7 . . . Full Trace Events 1 | . 1 . . . Feedback Events . | . . . . . Feedback Blocked . | . . . . . Robot Schematics Acquired . | . . . . . Robots Built . | . . . . . Matter . | . . . . . Time . | . . . . . Total Robot Build Rating . | . . . . . Part Schematics Acquired . | . . . . . Parts Built . | . . . . . Matter . | . . . . . Time . | . . . . . Total Part Build Rating . | . . . . . Parts Repaired . | . . . . . Time . | . . . . . Parts Recycled . | . . . . . Recycled Matter . | . . . . . Retrieved Matter . | . . . . . Retrieved Components . | . . . . . Parts Scanalyzed . | . . . . . Part Schematics Acquired . | . . . . . Parts Damaged . | . . . . . Bothacking | -11 -10 -10 -10 -9 ------------ Run | Scr Mat Min Exi Min Used RIF Installer . | . . . . . Robots Hacked . | . . . . . Non-combat . | . . . . . Combat . | . . . . . Robot Hacks Applied . | . . . . . Relay Couplers Released . | . . . . . Robots Rewired . | . . . . . Allies Hacked . | . . . . . Hacks Repelled . | . . . . . Allies | -11 -10 -10 -10 -9 -------- Run | Scr Mat Min Exi Min Total Allies 3 | . . 3 . . Largest Group 3 | . . 3 . . Highest-Rated Group 40 | . . 40 . . Highest-Rated Ally 16 | . . 16 . . Total Orders . | . . . . . Ally Attacks 12 | . . 12 . . Total Damage 143 | . . 143 . . Kills 2 | . . 2 . . Allies Corrupted . | . . . . . Allies Melted . | . . . . . Intel | -11 -10 -10 -10 -9 ------- Run | Scr Mat Min Exi Min Robot Analysis Total . | . . . . . Derelict Logs Recovered 2 | . . 2 . . Drone Launches . | . . . . . Drone Recoveries . | . . . . . Exploration | -11 -10 -10 -10 -9 ------------- Run | Scr Mat Min Exi Min Turns Passed 2667 | 67 1136 1055 407 2 Spaces Moved 1606 | 16 647 717 225 1 Core . | . . . . . Treads 387 | . 2 159 225 1 Legs 9 | 9 . . . . Wheels 1210 | 7 645 558 . . Hover . | . . . . . Flight . | . . . . . Fastest Speed 80 | 90 80 120 180 180 Average Speed 127 | 106 103 133 180 180 Slowest Speed 200 | 120 160 200 180 180 Overloaded Moves . | . . . . . Propulsion Burnouts . | . . . . . Robots Hopped . | . . . . . Cave-ins Triggered . | . . . . . Exploration Rate (%) 48 | 3 78 98 61 3 Regions Visited 4 Branch Regions 3 Pre-discovered Areas 3 | . 1 2 . . Known Exits Taken . | . . . . . Unknown Exits Taken 4 | 1 1 1 1 . Scrap Searched 1 | . . 1 . . Spaces Dug 8 | . 8 . . . Terrain Destroyed 118 | . 54 64 . . Melee . | . . . . . Projectile 8 | . 8 . . . AOE 110 | . 46 64 . . Terrain Rammed . | . . . . . Walls Destroyed . | . . . . . Machines Disabled . | . . . . . Actions | -11 -10 -10 -10 -9 --------- Run | Scr Mat Min Exi Min Total 2130 | 56 1067 778 228 1 Wait 389 | 30 343 16 . . Move 1602 | 15 646 716 224 1 Hop . | . . . . . Pick Up 19 | 1 16 2 . . Fast Attach 6 | 1 3 1 1 . Attach 8 | 2 1 4 1 . Detach 3 | . 1 1 1 . Swap 18 | . 13 5 . . Drop 25 | 2 18 4 1 . Fire 57 | 5 26 26 . . Melee . | . . . . . Ram 1 | . . 1 . . Kick . | . . . . . Crush 2 | . . 2 . . Escape Stasis . | . . . . . Rewire . | . . . . . Trap . | . . . . . Miscellaneous . | . . . . . Route ------- -11/Scrapyard -10/Materials (discovered 3 exits: [*Mat x2] / [*Min]) -10/Mines (discovered 3 exits: [*Mat x2] / *Exi) -10/Exiles -9/Mines History --------- Turn | Location | Event 1 | -11/Scrapyard | Discovered new exit (range 3) 68 | -11/Scrapyard | Entered Materials 300 | -10/Materials | Build established: Mutant 628 | -10/Materials | Discovered new exit (range 16) 668 | -10/Materials | Discovered new exit (range 6) 803 | -10/Materials | Discovered new exit (range 11) 1204 | -10/Materials | Entered Mines 1229 | -10/Mines | Discovered new exit (range 9) 1301 | -10/Mines | Learned location of Zion (-6) 1453 | -10/Mines | Assisted by bots powering up and referring to "LRC-V3" 1457 | -10/Mines | Learned Materials terminal intel 1507 | -10/Mines | Deemed a non-threat by the Exiles lab entrance 1508 | -10/Mines | Discovered new exit (range 5) 1585 | -10/Mines | Discovered new exit (range 16) 1700 | -10/Mines | Learned location of Storage (-9) 2259 | -10/Mines | Entered Exiles 2308 | -10/Exiles | Met 8R-AWN 2335 | -10/Exiles | Met EX-HEX 2384 | -10/Exiles | Met EX-BIN 2403 | -10/Exiles | Aligned with FarCom system 2405 | -10/Exiles | Given EX-Vault access code 2448 | -10/Exiles | Opened EX-Vault 2493 | -10/Exiles | Warned to stay clear of 0b10 Research branches 2521 | -10/Exiles | Exiles lab attacked by MAIN.C 2646 | -10/Exiles | Discovered new exit (range 14) 2666 | -10/Exiles | Entered Mines 2667 | -9/Mines | Assembled infested the area 2668 | -9/Mines | Self-destructed Last Messages --------------- 02567_ EX-BIN: "Not cool, MAIN.C, I don't even have my SDF Cannon ready..." 02582_ 8R-AWN: "We've got company!" 02597_ System corrupted: Energy discharge (-60). 02600_ Dropped Imp. Heat Sink. 02618_ Acquired Lrg. Storage Unit. 02646_ EXIT=FOUND 02650_ J5-HVA exits level. 02652_ System corrupted: Component data lost. 02656_ W1-DM0 exits level. 02659_ 5L-KAT exits level. 02660_ ZX-C33 exits level. 02663_ AM-PHS exits level. LOCATION=UNKNOWN GOAL=ESCAPE 02666_ Receiving FarCom transmissions... 02667_ ALERT: Infestation in the mines, dispatching Demolisher response squad. 02667_ 5L-KAT: "That was close. Too bad in all the rush we got split up from the others." Map ----- +----------------------------------------------------+ | ????????????????????????????????? | | ????????????????????????????????? | | ????????????????????????????????? | | ????????????????????????????????? | | ????????????????????????????????? | | ????????????????????????????????? | | ????????????????????????????????? | | ????????????????????g???????????? | | ????????????????????g???????????? | | ????????????????????????????????? | | ????????????????????????????????? | | ????????????????????????????????? | | ????????????????????????????????? | | ????????????????????????????????? | | ????????????????????????????????? | | ????????????????????????????????? | | ????????????????????????????????? | | ????????????????????????????????? | | ????????????????????????????????? | | ????????????????????????????????? | | ????????????????????????????????? | | ???????????????????????????###??? | | ?????????????????????#???## ##?? | | ????????????????????## ### #?? | | ???????????????????## #?? | | ???????????????????# @ #??? | | ??????????????????# """ z##??? | | ??????????????????# """ #???? | | ???????????????? """ ##???? | | ???????g????????#### ##????? | | ???????g???????????## ##?????? | | ????????g???????????## #???????? | | ?????????????????????###????????? | | ????????????????????????????????? | | ????????????????????????????????? | | ????????????????????????????????? | | | | | | | | | | | | | | | | | | | | | | | | | | | | | +----------------------------------------------------+ Best States ------------- Heat Dissipation 39 Energy Generation 12 Energy Capacity 265 Matter Stores 300 Matter Capacity 300 Sight Range 16 Terrain Scan Range 16 Terrain Scan Density 10 Evasion (%) 42 Recoil Reduction 2 Item Schematics ----------------- None Robot Schematics ------------------ None Fabricated ------------ Nothing Alien Tech Used ----------------- None Achievements -------------- None Challenges ------------ None Game ------ Seed AlertHeavyStorage Manual? 0 Play Time 00:19:02 Cumulative 248.4 hours Start 2021.08.24 @ 12:50:42 End 2021.08.24 @ 13:18:35 Sessions 1 Manual Loads 0 Difficulty Rogue Special Mode None Game No. 186 Rogue 186 Adventurer 0 Explorer 0 Win Type - Total 5 Types 5/0/0/0/0/0/0/0/0 Lore% 49 Gallery% 72 Achievement% 56 Wizard Run 0 Options --------- ASCII 0 Keyboard 0 Movement Numpad Keybinds 0 Fullscreen 2 Font 18/TerminusBold Map View 76x50 Tactical HUD 1 Map Filters NONE Filters NONE Steam 1 RUN: 6b4b519a-b2af-48f7-9b77-cecb5c11352d